bitfinex/quotes_SOLUSD_20250621
["timestamp","ask_amount","ask_price","bid_price","bid_amount"]
[1750495720286,11.50312837,141.12,141.11,7.08666997]
[1750495722505,30.84277723,141.12,141.11,7.08666997]
[1750495723581,30.15277723,141.12,141.09,24.80670867]
[1750495723809,12.19312837,141.11,141.09,24.80670867]
[1750495723996,5.30810989,141.1,141.09,24.80670867]
[1750495724198,12.20312837,141.1,141.09,24.80670867]
[1750495725804,12.20312837,141.1,141.09,17.71903414]
[1750495726512,11.50312837,141.1,141.09,17.71903414]
[1750495728418,12.20312837,141.1,141.09,17.71903414]
[1750495730086,11.50312837,141.1,141.09,18.40903414]
[1750495730494,5.30810989,141.1,141.09,25.49670867]
[1750495731994,12.23501848,141.11,141.09,25.49670867]
[1750495732821,12.23501848,141.11,141.09,24.80670867]
[1750495733030,12.23501848,141.11,141.1,0.69]
[1750495733215,17.54127131,141.11,141.1,0.69]
[1750495734900,17.54127131,141.11,141.1,7.77717221]
[1750495736528,18.24127131,141.11,141.09,17.71903414]
[1750495736697,12.93501848,141.11,141.09,17.71903414]
[1750495738734,12.93501848,141.11,141.09,24.80670867]
[1750495740847,12.23501848,141.11,141.09,18.40903414]
[1750495741845,12.93501848,141.11,141.09,18.40903414]
[1750495742152,12.23501848,141.11,141.09,18.40903414]
[1750495743753,12.23501848,141.11,141.09,25.49670867]
[1750495744248,6.04,141.11,141.09,25.49670867]
[1750495744447,12.23501848,141.11,141.09,25.49670867]
[1750495745330,12.93501848,141.11,141.09,25.49670867]
[1750495747943,12.23501848,141.11,141.09,25.49670867]
[1750495750846,12.93501848,141.11,141.09,25.49670867]
[1750495751924,12.93501848,141.11,141.09,24.80670867]
[1750495754028,12.23501848,141.11,141.09,24.80670867]
[1750495754329,12.93501848,141.11,141.09,24.80670867]
[1750495758541,12.23501848,141.11,141.09,0.68]
[1750495759641,12.23501848,141.11,141.1,7.08717221]
[1750495759848,11.35019076,141.11,141.1,7.08717221]
[1750495760156,17.54520924,141.11,141.1,7.08717221]
[1750495760957,18.25520924,141.11,141.1,7.08717221]
[1750495761933,18.25520924,141.11,141.07,24.81037781]
[1750495762135,12.94501848,141.11,141.08,0.68]
[1750495763861,12.94501848,141.11,141.09,7.08767453]
[1750495764955,6.02243872,141.1,141.09,7.08767453]
[1750495765547,12.2174572,141.1,141.09,7.08767453]
[1750495765967,12.2174572,141.1,141.08,7.08817692]
[1750495766167,5.31243872,141.09,141.08,7.08817692]
[1750495766375,5.31243872,141.09,141.08,7.76817692]
[1750495766667,5.31243872,141.09,141.08,7.08817692]
[1750495767854,5.31243872,141.09,141.07,17.72169844]
[1750495768149,6.90501848,141.1,141.08,0.68]
[1750495768337,5.31248304,141.09,141.07,17.72169844]
[1750495768538,6.90501848,141.1,141.07,18.40169844]
[1750495768845,5.31237643,141.09,141.08,7.76817692]
[1750495769458,6.19501848,141.1,141.08,7.76817692]
[1750495770075,6.19501848,141.1,141.07,24.81037781]
[1750495770442,12.23501848,141.11,141.08,0.68]
[1750495770638,5.31219087,141.1,141.08,0.68]
[1750495770964,12.23501848,141.11,141.08,0.68]
[1750495771258,5.31250629,141.1,141.08,0.68]
[1750495771454,12.23501848,141.11,141.08,0.68]
[1750495771661,5.31267928,141.1,141.08,0.68]
[1750495771847,12.23501848,141.11,141.08,0.68]
[1750495772051,5.31266819,141.1,141.08,0.68]
[1750495772257,12.23501848,141.11,141.09,7.08767453]
[1750495772453,5.31270983,141.1,141.09,7.76767453]
[1750495779583,6.04,141.11,141.09,7.76767453]
[1750495779880,6.04,141.11,141.1,7.76717221]
[1750495780078,11.35390199,141.11,141.1,7.76717221]
[1750495781386,11.35390199,141.11,141.08,24.80861922]
[1750495781678,6.04,141.11,141.09,0.68]
[1750495782460,6.04,141.11,141.1,7.08717221]
[1750495782785,5.31362752,141.11,141.1,7.08717221]
[1750495798797,6.02362752,141.11,141.1,7.08717221]
[1750495799613,12.218646,141.11,141.1,7.08717221]
[1750495800212,11.508646,141.11,141.1,7.08717221]
[1750495803725,12.218646,141.11,141.1,7.08717221]
[1750495804025,5.31362752,141.11,141.1,13.96219069]
[1750495804201,30.84441422,141.17,141.11,0.68]
[1750495804395,11.50624214,141.16,141.12,6.19501848]
[1750495804614,11.50624214,141.15,141.13,0.68]
[1750495804806,6.19501848,141.14,141.1,101.87184341]
[1750495805006,6.19501848,141.14,141.11,0.68]
[1750495805210,6.90501848,141.15,141.11,0.68]
[1750495806006,6.90501848,141.15,141.12,24.8015873]
[1750495806223,6.90501848,141.15,141.12,25.4815873]
[1750495807728,6.19501848,141.15,141.12,25.4815873]
[1750495807916,6.90501848,141.13,141.12,24.8015873]
[1750495808226,5.30268926,141.14,141.12,24.8015873]
[1750495808227,6.19501848,141.14,141.12,24.8015873]
[1750495808525,6.19501848,141.14,141.12,25.4815873]
[1750495810413,6.19501848,141.14,141.12,24.8015873]
[1750495810617,6.90501848,141.14,141.12,24.8015873]
[1750495811808,6.90501848,141.14,141.12,17.7154195]
[1750495812935,6.90501848,141.14,141.12,24.8015873]
[1750495813525,6.19501848,141.14,141.12,25.4815873]
[1750495814514,0.72,141.13,141.1,77.75674066]
[1750495816135,6.19501848,141.12,141.09,24.80686086]
[1750495816319,6.91501848,141.12,141.09,25.49686086]
[1750495818225,6.91501848,141.12,141.09,24.80686086]
[1750495818427,6.91501848,141.12,141.09,25.49686086]
[1750495821831,6.19501848,141.12,141.09,25.49686086]
[1750495822148,0.72,141.11,141.09,25.49686086]
[1750495822353,6.19501848,141.12,141.09,25.49686086]
[1750495822538,6.91501848,141.12,141.09,25.49686086]
[1750495824050,6.19501848,141.12,141.09,25.49686086]
[1750495824253,0.72,141.11,141.09,25.49686086]
[1750495825972,6.91501848,141.12,141.09,25.49686086]
[1750495826271,6.02,141.13,141.09,25.49686086]
[1750495826272,12.93501848,141.13,141.1,0.69]
[1750495826469,5.30442826,141.12,141.1,0.69]
[1750495826629,12.93501848,141.13,141.1,0.69]
[1750495826923,5.30455465,141.12,141.1,0.69]
[1750495827124,6.19501848,141.12,141.1,0.69]
[1750495828247,6.19501848,141.12,141.11,7.08666997]
[1750495828453,11.49963183,141.12,141.11,7.08666997]
[1750495831553,5.30461335,141.12,141.11,7.77666997]
[1750495831731,96.14,141.15,141.12,0.69]
[1750495831932,11.49917976,141.14,141.12,0.69]
[1750495832153,6.19501848,141.14,141.12,0.69]
[1750495833274,6.91501848,141.14,141.13,7.08566569]
[1750495833437,12.21901982,141.14,141.13,7.08566569]
[1750495835653,0.72,141.13,141.12,7.0861678]
[1750495835862,12.21901982,141.13,141.12,7.0861678]
[1750495836058,24.84466734,141.14,141.12,7.7761678]
[1750495836240,18.64964886,141.14,141.12,7.0861678]
[1750495836444,24.84466734,141.14,141.12,7.7761678]
[1750495840255,6.02,141.15,141.12,25.4915873]
[1750495840461,6.02,141.15,141.13,0.69]
[1750495841137,6.02,141.15,141.12,30.99660578]
[1750495841538,6.02,141.15,141.14,7.08516366]
[1750495841766,11.32346082,141.15,141.14,7.77516366]
[1750495854474,11.32346082,141.15,141.14,13.97018214]
[1750495854665,6.02,141.15,141.14,13.97018214]
[1750495854864,6.02,141.15,141.14,7.77516366]
[1750495858757,5.29987133,141.17,141.16,26.0]
[1750495859072,5.29853086,141.2,141.17,0.71]
[1750495859259,6.92501848,141.21,141.16,32.19501848]
[1750495859457,6.92501848,141.21,141.17,0.71]
[1750495859956,0.73,141.2,141.17,0.71]
[1750495860157,18.64964886,141.21,141.16,32.19501848]
[1750495860370,0.73,141.2,141.17,0.71]
[1750495860983,0.73,141.2,141.18,7.08315625]
[1750495862961,6.92501848,141.2,141.17,24.79239141]
[1750495863169,0.73,141.19,141.17,24.79239141]
[1750495863987,0.73,141.18,141.17,24.79239141]
[1750495865889,6.92501848,141.18,141.17,24.79239141]
[1750495866690,6.92501848,141.18,141.15,24.79631596]
[1750495866871,6.92501848,141.18,141.15,25.50631596]
[1750495869674,0.73,141.18,141.15,25.50631596]
[1750495870914,6.19501848,141.19,141.17,7.083658]
[1750495871068,6.92501848,141.19,141.17,7.083658]
[1750495875018,6.19501848,141.19,141.17,7.083658]
[1750495875219,0.73,141.18,141.17,7.083658]
[1750495877399,6.19501848,141.19,141.17,7.083658]
[1750495877705,6.19501848,141.18,141.17,7.083658]
[1750495878281,6.92501848,141.18,141.17,7.083658]
[1750495880209,6.92501848,141.18,141.15,24.79631596]
[1750495880701,0.73,141.18,141.16,0.72]
[1750495880890,25.57466734,141.19,141.16,0.72]
[1750495881607,24.84466734,141.19,141.16,0.72]
[1750495881904,0.73,141.18,141.16,0.72]
[1750495883510,0.73,141.18,141.17,7.083658]
[1750495884910,0.73,141.19,141.17,24.792803]
[1750495885111,6.92501848,141.19,141.17,24.792803]
[1750495885710,12.22211204,141.18,141.17,7.083658]
[1750495886010,30.8717609,141.18,141.17,7.083658]
[1750495886996,30.8717609,141.18,141.15,24.7961689]
[1750495887312,89.4,141.2,141.16,0.72]
[1750495888193,89.4,141.2,141.16,6.91501848]
[1750495888404,89.4,141.2,141.17,0.72]
[1750495888984,95.59501848,141.2,141.18,7.08315625]
[1750495889213,95.59501848,141.2,141.18,7.80315625]
[1750495890608,96.32501848,141.2,141.17,18.4287491]
[1750495891712,96.32501848,141.2,141.17,25.5124071]
[1750495892014,6.19501848,141.2,141.18,0.72]
[1750495892916,19.37964886,141.21,141.18,0.72]
[1750495893102,6.19501848,141.2,141.18,0.72]
[1750495894813,6.19501848,141.2,141.19,7.08265457]
[1750495895687,11.49576781,141.2,141.19,7.08265457]
[1750495899818,12.22576781,141.2,141.19,7.08265457]
[1750495900817,12.22576781,141.2,141.15,0.72]
[1750495900818,0.73,141.19,141.16,7.08415981]
[1750495901018,11.49576781,141.18,141.16,7.08415981]
[1750495901221,6.92501848,141.18,141.16,7.08415981]
[1750495901894,5.30588715,141.17,141.16,7.08415981]
[1750495902204,6.92501848,141.18,141.16,7.08415981]
[1750495903494,5.30662952,141.17,141.16,7.08415981]
[1750495903791,30.88129686,141.17,141.16,7.08415981]
[1750495904826,0.69,141.16,141.14,7.08516366]
[1750495905017,11.501648,141.15,141.14,7.08516366]
[1750495905219,12.191648,141.15,141.14,7.08516366]
[1750495906006,12.191648,141.15,141.13,24.79975024]
[1750495906325,6.19501848,141.15,141.13,25.49982993]
[1750495908105,6.19501848,141.17,141.13,23.90918272]
[1750495908312,5.30308067,141.16,141.14,0.7]
[1750495908509,6.19501848,141.17,141.14,0.7]
[1750495908712,5.3023555,141.16,141.14,0.7]
[1750495909026,6.19501848,141.17,141.14,0.7]
[1750495910521,6.19501848,141.17,141.15,7.0846617]
[1750495910726,6.19501848,141.17,141.15,7.7846617]
[1750495916328,6.88501848,141.17,141.15,7.7846617]
[1750495918530,6.19501848,141.17,141.15,7.7846617]
[1750495918832,12.19501848,141.18,141.15,0.7]
[1750495919912,12.88501848,141.18,141.15,0.7]
[1750495920310,12.19501848,141.18,141.15,0.7]
[1750495921132,12.19501848,141.18,141.16,7.08415981]
[1750495921327,6.0,141.18,141.17,0.7]
[1750495923106,6.0,141.18,141.17,7.783658]
[1750495923306,6.19501848,141.2,141.17,24.792803]
[1750495923506,6.19501848,141.2,141.18,0.7]
[1750495924235,19.33964886,141.21,141.19,7.08265457]
[1750495924411,6.19501848,141.2,141.19,7.08265457]
[1750495925534,19.33964886,141.21,141.19,7.08265457]
[1750495925743,6.88501848,141.2,141.19,7.08265457]
[1750495926334,0.69,141.19,141.16,0.7]
[1750495926506,6.19501848,141.19,141.16,0.7]
[1750495926707,6.19501848,141.19,141.15,41.61641834]
[1750495926926,6.19501848,141.19,141.16,0.7]
[1750495927332,6.88501848,141.19,141.17,7.083658]
[1750495928042,6.88501848,141.2,141.17,25.492803]
[1750495931040,6.19501848,141.2,141.17,25.492803]
[1750495931249,0.69,141.19,141.17,25.492803]
[1750495932042,6.19501848,141.2,141.17,25.492803]
[1750495932346,6.88501848,141.2,141.17,25.492803]
[1750495932523,0.69,141.18,141.17,24.792803]
[1750495932723,6.19501848,141.19,141.17,24.792803]
[1750495932919,6.88501848,141.19,141.17,24.792803]
[1750495938643,6.88501848,141.19,141.17,25.542803]
[1750495940253,0.69,141.19,141.17,25.542803]
[1750495940715,6.88501848,141.19,141.17,25.542803]
[1750495940916,6.19501848,141.19,141.17,25.542803]
[1750495942463,0.7,141.2,141.17,25.542803]
[1750495942632,6.19501848,141.19,141.17,25.542803]
[1750495943358,0.7,141.18,141.17,17.709145]
[1750495944346,6.89501848,141.19,141.17,17.709145]
[1750495944751,6.89501848,141.19,141.17,24.792803]
[1750495949939,6.89501848,141.18,141.17,7.083658]
[1750495950137,12.19518928,141.18,141.17,7.083658]
[1750495951360,12.19518928,141.18,141.16,7.08415981]
[1750495951561,6.89501848,141.18,141.16,7.08415981]
[1750495951953,6.89501848,141.18,141.16,7.83415981]
[1750495952346,6.19501848,141.18,141.16,7.83415981]
[1750495956885,6.89501848,141.18,141.16,7.83415981]
[1750495957172,6.19501848,141.17,141.16,7.08415981]
[1750495957681,6.19501848,141.17,141.15,25.54616537]
[1750495963172,6.89501848,141.17,141.15,17.71150367]
[1750495963564,6.89501848,141.17,141.15,18.46150367]
[1750495965258,6.89501848,141.17,141.15,25.54616537]
[1750495966985,6.19501848,141.17,141.15,25.54616537]
[1750495968677,5.98645382,141.16,141.15,24.79616537]
[1750495969280,5.30645382,141.16,141.15,24.79616537]
[1750495971180,5.30645382,141.16,141.15,25.48616537]
[1750495971381,5.30619689,141.16,141.15,25.48616537]
[1750495980391,6.19501848,141.17,141.15,25.48616537]
[1750495980583,5.30574954,141.16,141.15,25.48616537]
[1750495983807,5.30574954,141.16,141.15,24.79616537]
[1750495984888,5.30574954,141.16,141.15,25.48616537]
[1750495987895,5.30574954,141.16,141.14,0.69]
[1750495988082,6.87501848,141.17,141.14,0.69]
[1750495988380,5.30705633,141.16,141.14,0.69]
[1750495988679,6.87501848,141.17,141.14,0.69]
[1750495988886,11.50209337,141.16,141.14,0.69]
[1750495989103,6.19501848,141.16,141.14,0.69]
[1750495989480,6.87501848,141.16,141.13,24.79982993]
[1750495989690,6.87501848,141.16,141.13,25.48982993]
[1750495990011,6.19501848,141.15,141.13,25.48982993]
[1750495990302,6.19501848,141.15,141.14,0.69]
[1750495990712,6.87501848,141.16,141.14,0.69]
[1750495991092,5.3079447,141.15,141.14,0.69]
[1750495991909,6.87501848,141.16,141.13,25.48982993]
[1750495992087,5.3078932,141.15,141.13,25.48982993]
[1750495992411,6.87501848,141.16,141.13,25.48982993]
[1750495992584,5.30826455,141.15,141.14,0.69]
[1750495993304,12.19501848,141.18,141.14,0.69]
[1750495993486,5.30814825,141.17,141.14,0.69]
[1750495993685,12.87501848,141.18,141.14,0.69]
[1750495993897,5.30825109,141.17,141.14,0.69]
[1750495994097,12.87501848,141.18,141.15,24.79631596]
[1750495994409,5.30878993,141.17,141.15,25.49631596]
[1750495994588,12.87501848,141.18,141.15,25.49631596]
[1750495994789,5.30886147,141.17,141.15,25.49631596]
[1750495994994,12.87501848,141.18,141.15,25.49631596]
[1750495995296,5.30891783,141.17,141.15,25.49631596]
[1750495995599,12.87501848,141.18,141.15,25.49631596]
[1750495995787,5.3089972,141.17,141.15,25.49631596]
[1750495996115,12.19501848,141.18,141.16,0.7]
[1750495996409,5.30897293,141.17,141.16,0.7]
[1750495996782,5.30897293,141.17,141.16,7.78415981]
[1750495999193,5.30897293,141.17,141.16,7.08415981]
[1750495999514,12.23399141,141.17,141.16,7.08415981]
[1750496001120,12.23399141,141.17,141.15,24.79631596]
[1750496001286,6.92501848,141.17,141.15,24.79631596]
[1750496001488,5.30998927,141.16,141.15,24.79631596]
[1750496001717,6.92501848,141.17,141.15,24.79631596]
[1750496002989,5.31009632,141.16,141.15,24.79631596]
[1750496004404,6.92501848,141.17,141.15,24.79631596]
[1750496005090,6.19501848,141.17,141.15,18.41165426]
[1750496006717,6.19501848,141.17,141.15,25.49631596]
[1750496007418,6.92501848,141.17,141.15,25.49631596]
[1750496013831,12.92501848,141.18,141.15,25.49631596]
[1750496014129,5.30963859,141.17,141.15,25.49631596]
[1750496014309,12.92501848,141.18,141.15,25.49631596]
[1750496014512,5.30955704,141.17,141.15,25.49631596]
[1750496014723,6.92501848,141.17,141.15,24.79631596]
[1750496014903,12.23469072,141.16,141.15,24.79631596]
[1750496015705,12.23469072,141.16,141.15,17.71165426]
[1750496015923,11.50469072,141.16,141.15,17.71165426]
[1750496018135,11.50469072,141.16,141.15,24.79631596]
[1750496021544,12.23469072,141.16,141.15,24.79631596]
[1750496022653,12.23469072,141.16,141.15,17.71165426]
[1750496026645,11.50469072,141.16,141.15,17.71165426]
[1750496027355,5.30967224,141.16,141.15,18.44165426]
[1750496028354,5.30967224,141.16,141.15,25.52631596]
[1750496030250,6.0,141.18,141.15,31.72133444]
[1750496030454,5.309047,141.17,141.16,0.73]
[1750496030950,5.309047,141.17,141.16,6.92501848]
[1750496031138,6.0,141.18,141.16,6.92501848]
[1750496031340,6.0,141.18,141.17,0.73]
[1750496031550,11.30872769,141.18,141.17,0.73]
[1750496032131,11.30872769,141.18,141.17,7.813658]
[1750496039057,5.30872769,141.18,141.17,7.813658]
[1750496040373,6.19501848,141.2,141.17,24.792803]
[1750496040544,5.30785783,141.19,141.18,0.73]
[1750496041267,5.30785783,141.19,141.18,7.81315625]
[1750496041634,31.56466734,141.21,141.18,25.52104688]
[1750496041835,5.30690361,141.2,141.18,25.52104688]
[1750496042035,31.56466734,141.21,141.18,25.52104688]
[1750496042238,5.30681342,141.2,141.18,25.52104688]
[1750496042536,31.56466734,141.21,141.18,25.52104688]
[1750496042734,5.30588095,141.2,141.18,25.52104688]
[1750496042977,31.56466734,141.21,141.18,25.52104688]
[1750496043149,5.30586986,141.2,141.18,25.52104688]
[1750496043347,31.56466734,141.21,141.18,25.52104688]
[1750496043549,5.30519185,141.2,141.18,25.52104688]
[1750496043774,31.56466734,141.21,141.18,25.52104688]
[1750496043971,5.30509661,141.2,141.18,25.52104688]
[1750496044142,31.56466734,141.21,141.18,25.52104688]
[1750496044345,5.30451168,141.2,141.18,25.52104688]
[1750496044544,6.0,141.21,141.18,24.79104688]
[1750496044765,6.02415851,141.2,141.18,24.79104688]
[1750496044961,0.72,141.2,141.18,24.79104688]
[1750496045655,12.19501848,141.21,141.18,25.52104688]
[1750496045862,12.91501848,141.21,141.18,25.52104688]
[1750496046041,12.19501848,141.21,141.18,25.52104688]
[1750496046242,0.72,141.2,141.18,25.52104688]
[1750496050274,12.19501848,141.21,141.18,25.52104688]
[1750496050576,12.91501848,141.21,141.18,25.52104688]
[1750496051089,0.72,141.2,141.18,25.52104688]
[1750496051380,0.72,141.2,141.18,24.79104688]
[1750496057079,0.72,141.2,141.18,25.53104688]
[1750496059296,12.92501848,141.21,141.18,25.53104688]
[1750496065783,6.73,141.21,141.18,25.53104688]
[1750496065993,12.92501848,141.21,141.18,25.53104688]
[1750496068167,12.92501848,141.21,141.18,24.79104688]
[1750496068476,12.92501848,141.21,141.18,25.53104688]
[1750496069668,5.29951815,141.2,141.18,25.53104688]
[1750496069991,12.92501848,141.21,141.18,25.53104688]
[1750496070171,5.29951815,141.2,141.18,25.53104688]
[1750496070492,12.92501848,141.21,141.18,25.53104688]
[1750496070688,5.29966555,141.2,141.18,25.53104688]
[1750496070871,12.92501848,141.21,141.18,25.53104688]
[1750496071071,5.30103847,141.2,141.18,25.53104688]
[1750496071268,12.92501848,141.21,141.18,25.53104688]
[1750496071466,5.3011765,141.2,141.18,25.53104688]
[1750496071671,12.92501848,141.21,141.18,25.53104688]
[1750496071890,5.30198029,141.2,141.18,25.53104688]
[1750496072090,12.92501848,141.21,141.18,25.53104688]
[1750496072394,5.30211332,141.2,141.18,25.53104688]
[1750496072694,12.92501848,141.21,141.18,25.53104688]
[1750496072994,5.30282033,141.2,141.18,25.53104688]
[1750496073205,6.73,141.21,141.18,25.53104688]
[1750496073489,5.30295434,141.2,141.18,25.53104688]
[1750496073687,12.92501848,141.21,141.18,25.53104688]
[1750496073875,5.30375568,141.2,141.18,25.53104688]
[1750496074077,12.92501848,141.21,141.18,25.53104688]
[1750496074282,5.30387934,141.2,141.18,25.53104688]
[1750496074479,12.92501848,141.21,141.18,25.53104688]
[1750496074687,5.30479729,141.2,141.18,25.53104688]
[1750496074881,12.92501848,141.21,141.18,25.53104688]
[1750496075191,5.30474317,141.2,141.18,25.53104688]
[1750496075394,12.92501848,141.21,141.18,25.53104688]
[1750496075591,0.73,141.19,141.16,36.15883345]
[1750496075781,0.73,141.19,141.16,42.35385193]
[1750496076188,0.73,141.19,141.16,41.61385193]
[1750496076382,0.73,141.19,141.17,0.74]
[1750496076694,6.92501848,141.2,141.17,0.74]
[1750496077977,6.92501848,141.2,141.18,7.08315625]
[1750496079195,6.19501848,141.2,141.18,7.08315625]
[1750496079383,12.92501848,141.21,141.18,25.53104688]
[1750496079697,5.30695722,141.2,141.18,25.53104688]
[1750496079898,12.92501848,141.21,141.18,25.53104688]
[1750496080095,5.30744508,141.2,141.18,25.53104688]
[1750496080298,12.92501848,141.21,141.18,25.53104688]
[1750496080598,5.30754054,141.2,141.18,25.53104688]
[1750496080800,5.30754054,141.19,141.18,25.53104688]
[1750496092197,5.30754054,141.19,141.18,31.72606536]
[1750496095705,6.0,141.21,141.18,30.98606536]
[1750496095906,5.31236524,141.2,141.19,6.91501848]
[1750496096627,9.66242238,141.27,141.23,0.47]
[1750496096915,9.66242238,141.27,141.26,31.4450924]
[1750496097303,9.66242238,141.27,141.26,38.52423723]
[1750496098010,9.66242238,141.27,141.26,13.74416331]
[1750496098208,9.66242238,141.27,141.26,13.27416331]
[1750496102721,9.66242238,141.27,141.26,13.74416331]
[1750496103520,9.66242238,141.27,141.26,38.52423723]
[1750496107100,5.98,141.34,141.3,0.47]
[1750496107329,5.98,141.34,141.33,6.19501848]
[1750496107627,0.69,141.35,141.33,6.19501848]
[1750496108528,0.69,141.35,141.34,7.07513796]
[1750496112828,18.64964886,141.38,141.34,66.33369117]
[1750496113125,0.69,141.37,141.34,66.33369117]
[1750496114232,0.69,141.37,141.35,6.19501848]
[1750496115420,0.69,141.37,141.34,66.33369117]
[1750496116320,0.69,141.37,141.35,6.19501848]
[1750496117028,0.69,141.37,141.34,60.13867269]
[1750496117029,6.19501848,141.36,141.34,24.76298287]
[1750496117237,0.71,141.35,141.34,24.76298287]
[1750496118840,0.71,141.35,141.33,9.64230719]
[1750496120040,10.35230719,141.37,141.34,24.76298287]
[1750496120216,9.64230719,141.37,141.34,24.76298287]
[1750496120416,0.71,141.35,141.34,24.76298287]
[1750496122024,0.71,141.35,141.34,17.68784491]
[1750496129356,10.35230719,141.35,141.34,17.68784491]
[1750496130042,0.71,141.35,141.34,17.68784491]
[1750496130347,10.35230719,141.35,141.34,17.68784491]
[1750496130745,0.71,141.35,141.34,17.68784491]
[1750496132937,9.64230719,141.36,141.34,17.68784491]
[1750496133245,28.29195605,141.38,141.34,27.3301521]
[1750496133547,0.71,141.37,141.34,24.76298287]
[1750496133735,0.71,141.36,141.34,24.76298287]
[1750496134132,9.64230719,141.37,141.34,24.76298287]
[1750496134433,10.35230719,141.37,141.34,24.76298287]
[1750496134843,95.38,141.39,141.34,70.25097988]
[1750496135043,0.71,141.38,141.35,9.64230719]
[1750496135439,0.71,141.38,141.36,7.07413695]
[1750496135746,0.71,141.38,141.36,24.75947933]
[1750496135945,105.02230719,141.39,141.36,24.75947933]
[1750496136154,0.71,141.38,141.36,24.75947933]
[1750496139742,0.71,141.38,141.34,60.13867269]
[1750496139941,9.64230719,141.38,141.34,69.78097988]
[1750496140145,0.71,141.37,141.34,69.78097988]
[1750496140860,0.71,141.37,141.34,66.30833298]
[1750496142553,6.87966029,141.38,141.34,66.77833298]
[1750496142755,5.28590354,141.37,141.34,66.77833298]
[1750496142939,6.87966029,141.38,141.34,66.77833298]
[1750496143141,5.28590473,141.37,141.34,66.77833298]
[1750496143351,6.87966029,141.38,141.34,66.77833298]
[1750496143531,5.28711496,141.37,141.34,66.77833298]
[1750496143733,0.71,141.37,141.34,60.60867269]
[1750496143965,0.71,141.37,141.34,66.77833298]
[1750496145338,6.89966029,141.38,141.34,66.77833298]
[1750496146653,5.29165838,141.37,141.34,66.77833298]
[1750496146844,6.89966029,141.38,141.34,66.77833298]
[1750496147041,5.29159708,141.37,141.34,66.77833298]
[1750496147344,6.89966029,141.38,141.34,66.77833298]
[1750496149132,23.61847199,141.41,141.37,6.63966029]
[1750496149354,5.29383264,141.4,141.37,0.47]
[1750496149663,29.78813228,141.41,141.37,6.63966029]
[1750496149843,6.02378476,141.4,141.37,6.16966029]
[1750496150043,0.73,141.4,141.37,6.16966029]
[1750496150256,0.73,141.4,141.37,6.63966029]
[1750496151127,0.73,141.4,141.38,7.07313622]
[1750496154145,29.05813228,141.41,141.38,24.75597679]
[1750496154352,0.73,141.39,141.38,24.75597679]
[1750496155438,18.64964886,141.38,141.37,7.07363655]
[1750496155641,6.89966029,141.38,141.37,7.07363655]
[1750496156145,0.73,141.38,141.37,7.07363655]
[1750496156340,6.89966029,141.38,141.37,7.07363655]
[1750496156541,12.19154473,141.38,141.34,70.75137964]
[1750496156754,0.73,141.36,141.34,70.75137964]
[1750496158138,0.73,141.36,141.34,77.8265176]
[1750496158465,0.73,141.37,141.34,101.6840228]
[1750496159753,0.73,141.37,141.34,95.51436251]
[1750496160357,6.89966029,141.37,141.34,95.51436251]
[1750496161645,6.89966029,141.36,141.32,24.76648739]
[1750496161845,0.73,141.35,141.32,30.93614768]
[1750496162838,6.16966029,141.37,141.33,6.63966029]
[1750496163043,6.89966029,141.37,141.33,6.63966029]
[1750496163967,6.89966029,141.37,141.34,24.76298287]
[1750496164166,6.16966029,141.37,141.34,24.76298287]
[1750496164350,6.89966029,141.35,141.34,24.76298287]
[1750496165474,6.89966029,141.35,141.32,60.14718368]
[1750496165674,0.73,141.37,141.33,6.63966029]
[1750496165981,6.16966029,141.37,141.33,6.63966029]
[1750496166347,1.6585,141.39,141.36,6.16966029]
[1750496166547,0.73,141.4,141.36,6.63966029]
[1750496166762,6.89966029,141.4,141.36,6.16966029]
[1750496167751,6.89966029,141.4,141.37,24.75772794]
[1750496168953,10.36799787,141.4,141.37,24.75772794]
[1750496172069,10.36799787,141.4,141.37,17.68409139]
[1750496172272,4.23882313,141.41,141.37,17.68409139]
[1750496172449,10.36799787,141.4,141.37,17.68409139]
[1750496172654,9.63799787,141.4,141.37,17.68409139]
[1750496173873,9.63799787,141.4,141.37,24.75772794]
[1750496174871,14.606821,141.41,141.37,24.75772794]
[1750496176381,13.876821,141.41,141.37,24.75772794]
[1750496176577,0.71,141.4,141.37,24.75772794]
[1750496180682,10.34799787,141.4,141.37,24.75772794]
[1750496181468,10.34799787,141.38,141.37,7.07363655]
[1750496181671,10.34799787,141.38,141.33,42.45383145]
[1750496181886,9.63799787,141.37,141.33,60.61292789]
[1750496182071,9.63799787,141.37,141.33,69.78092576]
[1750496182380,9.63799787,141.37,141.34,0.47]